fUST/lending_fUST_20240113
["ID","MTS","AMOUNT","RATE_DAILY","PERIOD"]
[311421803,1705085449283,-500.0,0.00026575,2]
[311421804,1705085449293,-607.37,0.00026575,2]
[311421805,1705085449303,-500.0,0.00026575,2]
[311421806,1705085449312,-1348.38,0.00026575,2]
[311421807,1705085449322,-577.97,0.00026575,2]
[311421808,1705085449331,-6716.99,0.00026575,2]
[311421809,1705085449340,-3437.9,0.00026575,2]
[311421810,1705085449349,-500.0,0.00026575,2]
[311421811,1705085449359,-1195.0,0.00026575,2]
[311421812,1705085449446,-1126.56,0.00026575,2]
[311421813,1705085449456,-858.55,0.00026575,2]
[311421814,1705085449466,-500.0,0.00026575,2]
[311421815,1705085449475,-500.0,0.00026849,2]
[311421816,1705085449484,-500.0,0.00026849,2]
[311421817,1705085449494,-500.0,0.00026849,2]
[311421818,1705085449503,-607.37,0.00026849,2]
[311421819,1705085449512,-500.0,0.00026849,2]
[311421820,1705085449521,-1348.38,0.00026849,2]
[311421821,1705085449530,-577.97,0.00026849,2]
[311421822,1705085449539,-6716.99,0.00026849,2]
[311421823,1705085449548,-3437.9,0.00026849,2]
[311421824,1705085449557,-500.0,0.00026849,2]
[311421825,1705085449566,-1195.0,0.00026849,2]
[311421826,1705085449575,-1126.56,0.00026849,2]
[311421827,1705085449584,-858.55,0.00026849,2]
[311421828,1705085449593,-500.0,0.00026849,2]
[311421829,1705085449602,-151.0,0.00026993,2]
[311421830,1705085449612,-460.75992736,0.00027,2]
[311421831,1705085449621,-289.5463958,0.00027,2]
[311421832,1705085449630,-98255.43402334,0.00027,7]
[311421833,1705085449642,-1500.0,0.00027,2]
[311421834,1705085449652,-397.07109141,0.00027123,2]
[311421835,1705085449660,-500.0,0.00027123,2]
[311421836,1705085449670,-197.99,0.00027123,2]
[311421837,1705085449679,-500.0,0.00027123,2]
[311421838,1705085449688,-607.37,0.00027123,2]
[311421839,1705085449697,-347.22,0.00027123,2]
[311421840,1705085449706,-1348.38,0.00027123,2]
[311421841,1705085449715,-577.97,0.00027123,2]
[311421842,1705085449724,-6716.99,0.00027123,2]
[311421843,1705085449733,-3437.9,0.00027123,2]
[311421844,1705085449742,-500.0,0.00027123,2]
[311421845,1705085449754,-1195.0,0.00027123,2]
[311421846,1705085449763,-1126.56,0.00027123,2]
[311421847,1705085449772,-858.55,0.00027123,2]
[311421848,1705085449781,-500.0,0.00027123,2]
[311421849,1705085449792,-5000.0,0.00027266,2]
[311421850,1705085449801,-5000.0,0.00027266,2]
[311421851,1705085449810,-5000.0,0.0002731,2]
[311421852,1705085449820,-5000.0,0.0002731,2]
[311421853,1705085449829,-14227.1087061,0.0002731,2]
[311421854,1705085449839,-5000.0,0.0002731,2]
[311421855,1705085449849,-5000.0,0.0002731,2]
[311421856,1705085449858,-5000.0,0.0002731,2]
[311421857,1705085449867,-5000.0,0.0002731,2]
[311421858,1705085449876,-4120.17295715,0.0002731,2]
[311421859,1705085449885,-5000.0,0.0002731,2]
[311421860,1705085449894,-5000.0,0.0002731,2]
[311421861,1705085449903,-5000.0,0.0002731,2]
[311421862,1705085449912,-4495.32258314,0.0002731,2]
[311421863,1705085449922,-5000.0,0.0002731,2]
[311421864,1705085449930,-5000.0,0.00027394,2]
[311421865,1705085449939,-2224.89722802,0.00027394,2]
[311421866,1705085449949,-783.56564598,0.00027394,2]
[311421867,1705085449957,-3000.0,0.00027397,2]
[311421868,1705085449966,-500.0,0.00027397,14]
[311421869,1705085449975,-501.99886859,0.00027397,14]
[311421870,1705085449984,-155.0,0.00027397,2]
[311421871,1705085449993,-811.79,0.00027397,2]
[311421872,1705085450002,-811.79,0.00027397,2]
[311421873,1705085450012,-811.79,0.00027397,2]
[311421874,1705085450021,-811.79,0.00027397,2]
[311421875,1705085450030,-811.79,0.00027397,2]
[311421876,1705085450040,-811.79,0.00027397,2]
[311421877,1705085450049,-811.79,0.00027397,2]
[311421878,1705085450059,-811.79,0.00027397,2]
[311421879,1705085450068,-811.79,0.00027397,2]
[311421880,1705085450078,-811.79,0.00027397,2]
[311421881,1705085450087,-395.7277899,0.00027397,2]
[311421882,1705085450243,-500.0,0.00023561,2]
[311421883,1705085450254,-599.66058324,0.00023835,2]
[311421884,1705085450263,-500.0,0.00024657,2]
[311421885,1705085450272,-309.65125445,0.00024931,2]
[311421886,1705085450281,-500.0,0.000263,2]
[311421887,1705085450293,-500.0,0.000263,2]
[311421888,1705085450303,-308.05719119,0.000263,2]
[311421889,1705085450312,-416.0622101,0.00027397,2]
[311421890,1705085450321,-811.79,0.00027397,2]
[311421891,1705085450331,-811.79,0.00027397,2]
[311421892,1705085450340,-811.79,0.00027397,2]
[311421893,1705085450349,-811.79,0.00027397,2]
[311421894,1705085450358,-811.79,0.00027397,2]
[311421895,1705085450368,-811.79,0.00027397,2]
[311421896,1705085450377,-165.17042171,0.00027397,2]
[311421897,1705085450388,-646.61957829,0.00027397,2]
[311421898,1705085450397,-811.79,0.00027397,2]
[311421899,1705085450406,-811.79,0.00027397,2]
[311421900,1705085450416,-811.79,0.00027397,2]
[311421901,1705085450425,-500.0,0.00027397,2]
[311421902,1705085450434,-381.28021755,0.00027397,2]
[311421903,1705085450447,-118.71978245,0.00027397,2]
[311421904,1705085450456,-607.37,0.00027397,2]
[311421905,1705085450465,-541.89026665,0.00027397,2]
[311421906,1705085450477,-806.48973335,0.00027397,2]
[311421907,1705085450486,-577.97,0.00027397,2]
[311421908,1705085450495,-500.0,0.00027397,2]
[311421909,1705085450505,-6716.99,0.00027397,2]
[311421910,1705085450514,-3437.9,0.00027397,2]
[311421911,1705085450523,-500.0,0.00027397,2]
[311421912,1705085450532,-1195.0,0.00027397,2]
[311421913,1705085450543,-1126.56,0.00027397,2]
[311421914,1705085450553,-858.55,0.00027397,2]
[311421915,1705085450562,-500.0,0.00027397,2]
[311421916,1705085450571,-898.15855768,0.00027397,2]
[311421917,1705085450581,-4917.8600325,0.000274,2]
[311421918,1705085450590,-186.53296734,0.000274,5]
[311421919,1705085450599,-186.53,0.000274,5]
[311421920,1705085450609,-165.80708208,0.000274,5]
[311421921,1705085450618,-165.80708208,0.000274,5]
[311421922,1705085450627,-165.80708208,0.000274,5]
[311421923,1705085450637,-165.80708208,0.000274,5]
[311421924,1705085450646,-165.80708208,0.000274,5]
[311421925,1705085450659,-165.80708208,0.000274,5]
[311421926,1705085450668,-500.0,0.00027534,2]
[311421927,1705085450677,-9101.57193357,0.0002755,4]
[311421928,1705085450687,-165.80708208,0.00027556,5]
[311421929,1705085450696,-620.03051124,0.00027582,2]
[311421930,1705085450705,-811.79,0.00027671,2]
[311421931,1705085450714,-259.23759939,0.00027671,2]
[311421932,1705085450724,-500.0,0.00027671,2]
[311421933,1705085450734,-607.37,0.00027671,2]
[311421934,1705085450743,-1348.38,0.00027671,2]
[311421935,1705085450753,-577.97,0.00027671,2]
[311421936,1705085450763,-500.0,0.00027671,2]
[311421937,1705085450771,-6716.99,0.00027671,2]
[311421938,1705085450781,-1358.44793473,0.00027671,2]
[311421940,1705085450795,-2079.45206527,0.00027671,2]
[311421941,1705085450804,-548.96,0.00027671,2]
[311421942,1705085450814,-1195.0,0.00027671,2]
[311421943,1705085450823,-1126.56,0.00027671,2]
[311421944,1705085450833,-858.55,0.00027671,2]
[311421945,1705085450843,-268.53618007,0.00027671,2]
[311421946,1705085450853,-151.0,0.00027783,2]
[311421947,1705085450862,-343.83501453,0.00027808,2]
[311421948,1705085450915,-500.0,0.00021917,2]
[311421949,1705085450924,-345.12869652,0.00022181,3]
[311421950,1705085450941,-5388.97130348,0.00022181,3]
[311421951,1705085450951,-156.16498547,0.00027808,2]
[311421952,1705085450960,-150.0,0.00027873,2]
[311421953,1705085450969,-811.79,0.00027945,2]
[311421954,1705085450979,-397.34870908,0.00027945,2]
[311421955,1705085450988,-607.37,0.00027945,2]
[311421956,1705085450997,-1348.38,0.00027945,2]
[311421957,1705085451006,-577.97,0.00027945,2]
[311421958,1705085451015,-500.0,0.00027945,2]
[311421959,1705085451024,-448.44256153,0.00027945,2]
[311421965,1705085552578,155.0310062,0.00021914,4]
[311421967,1705085633094,155.0310062,0.00021914,4]
[311421968,1705085649088,155.0310062,0.00021696,4]
[311421970,1705085667107,155.0310062,0.00020373,4]
[311421971,1705085687092,155.0310062,0.00020373,4]
[311421972,1705085703110,155.0310062,0.00020373,4]
[311421977,1705086089152,155.02015262,0.00020373,4]
[311421978,1705086111143,155.02015262,0.00020373,4]
[311421979,1705086149162,155.02015262,0.00020373,4]
[311421980,1705086167246,155.02015262,0.00020373,4]
[311421982,1705086187157,155.02015262,0.00020373,4]
[311421996,1705086632323,-3790.45530755,0.00021913,2]
[311422058,1705086638528,-670.6145384,0.00021913,2]
[311422061,1705086638539,-1019.46116191,0.00021914,2]
[311422063,1705086638551,-197.46090008,0.00021915,2]
[311422065,1705086638561,-155.60668102,0.00021917,2]
[311422067,1705086638571,-500.0,0.00021917,2]
[311422069,1705086638582,-500.0,0.00021917,2]
[311422072,1705086638593,-500.0,0.00021917,2]
[311422074,1705086638603,-500.0,0.00021917,2]
[311422076,1705086638614,-500.0,0.00021917,2]
[311422078,1705086638625,-500.0,0.00021917,2]
[311422080,1705086638635,-500.0,0.00021917,2]
[311422082,1705086638645,-500.0,0.00021917,2]
[311422084,1705086638656,-500.0,0.00021917,2]
[311422087,1705086638667,-605.14027275,0.00021917,2]
[311422089,1705086638678,-500.0,0.00021917,2]
[311422090,1705086638688,-500.0,0.00021917,2]
[311422091,1705086638698,-500.0,0.00021917,2]
[311422093,1705086638709,-166.666666,0.00021918,2]
[311422094,1705086638719,-1168.30136323,0.00022091,2]
[311422096,1705086638730,-500.0,0.00022191,2]
[311422098,1705086638742,-500.0,0.00022191,2]
[311422099,1705086638752,-500.0,0.00022191,2]
[311422100,1705086638762,-500.0,0.00022191,2]
[311422101,1705086638773,-500.0,0.00022191,2]
[311422102,1705086638783,-607.43,0.00022191,2]
[311422103,1705086638794,-166.666666,0.00022431,2]
[311422104,1705086638804,-500.0,0.00022465,2]
[311422105,1705086638815,-500.0,0.00022465,2]
[311422106,1705086638825,-500.0,0.00022465,2]
[311422107,1705086638835,-500.0,0.00022465,2]
[311422108,1705086638846,-500.0,0.00022465,2]
[311422109,1705086638856,-173.06455299,0.00022627,2]
[311422110,1705086638866,-580.45,0.00022727,2]
[311422112,1705086638876,-541.06,0.00022727,2]
[311422113,1705086638886,-971.17,0.00022727,2]
[311422115,1705086638896,-500.0,0.00022727,2]
[311422116,1705086638906,-500.0,0.00022727,2]
[311422117,1705086638916,-500.0,0.00022738,2]
[311422118,1705086638926,-484.5252205,0.00022738,2]
[311422119,1705086638936,-500.0,0.00022738,2]
[311422120,1705086638946,-500.0,0.00022738,2]
[311422121,1705086638956,-500.0,0.00022738,2]
[311422122,1705086638967,-500.0,0.00022738,2]
[311422123,1705086638976,-500.0,0.00022738,2]
[311422124,1705086638988,-500.0,0.00022738,2]
[311422125,1705086638998,-500.0,0.00022739,2]
[311422126,1705086639148,-500.0,0.00022739,2]
[311422127,1705086639160,-544.685347,0.00022739,2]
[311422128,1705086639169,-500.0,0.00022739,2]
[311422129,1705086639178,-500.0,0.00022739,2]
[311422130,1705086639187,-166.666666,0.00022944,2]
[311422131,1705086639195,-500.0,0.00022999,2]
[311422132,1705086639204,-2093.76186828,0.00023,2]
[311422133,1705086639213,-580.45,0.00023001,2]
[311422134,1705086639222,-541.06,0.00023001,2]
[311422135,1705086639231,-971.17,0.00023001,2]
[311422136,1705086639241,-500.0,0.00023001,2]
[311422137,1705086639250,-500.0,0.00023001,2]
[311422138,1705086639259,-500.0,0.00023012,2]
[311422139,1705086639268,-500.0,0.00023012,2]
[311422140,1705086639278,-500.0,0.00023012,2]
[311422141,1705086639289,-500.0,0.00023012,2]
[311422142,1705086639298,-500.0,0.00023012,2]
[311422143,1705086639308,-500.0,0.00023012,2]
[311422144,1705086639317,-500.0,0.00023012,2]
[311422145,1705086639327,-500.0,0.00023012,2]
[311422146,1705086639337,-500.0,0.00023013,2]
[311422147,1705086639346,-500.0,0.00023013,2]
[311422148,1705086639356,-500.0,0.00023013,2]
[311422149,1705086639365,-151.3743688,0.00023013,2]
[311422150,1705086639374,-500.0,0.00023273,2]
[311422151,1705086639384,-580.45,0.00023275,2]
[311422152,1705086639393,-541.06,0.00023275,2]
[311422153,1705086639402,-971.17,0.00023275,2]
[311422154,1705086639411,-500.0,0.00023275,2]
[311422155,1705086639420,-500.0,0.00023275,2]
[311422156,1705086639429,-294.58416484,0.00023286,2]
[311422157,1705086639438,-500.0,0.00023286,2]
[311422158,1705086639448,-500.0,0.00023286,2]
[311422159,1705086639457,-500.0,0.00023286,2]
[311422160,1705086639467,-500.0,0.00023286,2]
[311422161,1705086639476,-500.0,0.00023286,2]
[311422162,1705086639486,-500.0,0.00023286,2]
[311422163,1705086639496,-500.0,0.00023286,2]
[311422164,1705086639505,-500.0,0.00023287,2]
[311422165,1705086639515,-500.0,0.00023287,2]
[311422166,1705086639525,-500.0,0.00023287,2]
[311422167,1705086639535,-166.666666,0.00023456,2]
[311422168,1705086639545,-500.0,0.00023547,2]
[311422169,1705086639555,-580.45,0.00023549,2]
[311422170,1705086639566,-541.06,0.00023549,2]
[311422171,1705086639575,-971.17,0.00023549,2]
[311422172,1705086639584,-500.0,0.00023549,2]
[311422173,1705086639594,-500.0,0.00023549,2]
[311422174,1705086639603,-500.0,0.0002356,2]
[311422175,1705086639612,-500.0,0.0002356,2]
[311422176,1705086639621,-500.0,0.0002356,2]
[311422177,1705086639631,-500.0,0.0002356,2]
[311422178,1705086639640,-500.0,0.0002356,2]
[311422179,1705086639649,-500.0,0.0002356,2]
[311422180,1705086639658,-217.16675867,0.0002356,2]
[311422181,1705086639668,-500.0,0.00023561,2]
[311422182,1705086639677,-500.0,0.00023561,2]
[311422183,1705086639687,-2543.02,0.00023813,3]
[311422184,1705086639696,-500.0,0.00023821,2]
[311422185,1705086639706,-580.45,0.00023823,2]
[311422186,1705086639716,-541.06,0.00023823,2]
[311422187,1705086639725,-971.17,0.00023823,2]
[311422188,1705086639735,-500.0,0.00023823,2]
[311422189,1705086639744,-500.0,0.00023823,2]
[311422190,1705086639754,-4354.58,0.00023825,3]
[311422191,1705086639763,-1695.33,0.00023833,2]
[311422192,1705086639773,-500.0,0.00023833,2]
[311422193,1705086639782,-500.0,0.00023833,2]
[311422194,1705086639791,-500.0,0.00023834,2]
[311422195,1705086639801,-160.71463718,0.00023834,2]
[311422196,1705086639810,-500.0,0.00023834,2]
[311422197,1705086639819,-500.0,0.00023834,2]
[311422198,1705086639828,-500.0,0.00023834,2]
[311422199,1705086639837,-500.0,0.00023834,2]
[311422200,1705086639846,-500.0,0.00023835,2]
[311422201,1705086639855,-500.0,0.00023835,2]
[311422202,1705086639865,-166.666666,0.00023969,2]
[311422203,1705086639875,-500.0,0.00024095,2]
[311422204,1705086639884,-580.45,0.00024097,2]
[311422205,1705086639893,-541.06,0.00024097,2]
[311422206,1705086639903,-971.17,0.00024097,2]
[311422207,1705086639912,-500.0,0.00024097,2]
[311422208,1705086639921,-500.0,0.00024097,2]
[311422209,1705086639930,-1695.33,0.00024107,2]
[311422210,1705086639939,-500.0,0.00024107,2]
[311422211,1705086639961,-500.0,0.00024107,2]
[311422212,1705086639971,-500.0,0.00024108,2]
[311422213,1705086639980,-500.0,0.00024108,2]
[311422214,1705086639992,-200.0,0.00024108,7]
[311422215,1705086640002,-500.0,0.00024108,2]
[311422216,1705086640012,-500.0,0.00024108,2]
[311422217,1705086640022,-500.0,0.00024108,2]
[311422218,1705086640032,-216.47158373,0.00024109,2]
[311422219,1705086640042,-500.0,0.00024109,2]
[311422220,1705086640051,-500.0,0.00024369,2]
[311422221,1705086640061,-580.45,0.00024371,2]
[311422222,1705086640071,-541.06,0.00024371,2]
[311422223,1705086640080,-971.17,0.00024371,2]
[311422224,1705086640090,-500.0,0.00024371,2]
[311422225,1705086640100,-500.0,0.00024371,2]
[311422226,1705086640110,-1695.33,0.00024381,2]
[311422227,1705086640119,-500.0,0.00024381,2]
[311422228,1705086640129,-500.0,0.00024381,2]
[311422229,1705086640139,-500.0,0.00024382,2]
[311422230,1705086640148,-500.0,0.00024382,2]
[311422231,1705086640158,-500.0,0.00024382,2]
[311422232,1705086640168,-500.0,0.00024382,2]
[311422233,1705086640177,-500.0,0.00024382,2]
[311422234,1705086640186,-98.52522571,0.00024383,2]
[311422240,1705086641379,-401.47477429,0.00024383,2]
[311422241,1705086641390,-166.666666,0.00024482,2]
[311422242,1705086641400,-500.0,0.00024643,2]
[311422243,1705086641410,-580.45,0.00024645,2]
[311422244,1705086641419,-541.06,0.00024645,2]
[311422245,1705086641429,-971.17,0.00024645,2]
[311422246,1705086641438,-500.0,0.00024645,2]
[311422247,1705086641447,-500.0,0.00024645,2]
[311422248,1705086641457,-1695.33,0.00024655,2]
[311422249,1705086641467,-500.0,0.00024655,2]
[311422250,1705086641476,-500.0,0.00024655,2]
[311422251,1705086641485,-500.0,0.00024656,2]
[311422252,1705086641494,-500.0,0.00024656,2]
[311422253,1705086641503,-500.0,0.00024656,2]
[311422254,1705086641511,-500.0,0.00024656,2]
[311422255,1705086641520,-500.0,0.00024656,2]
[311422256,1705086641529,-596.6,0.00024657,2]
[311422257,1705086641538,-500.0,0.00024917,2]
[311422258,1705086641547,-580.45,0.00024919,2]
[311422259,1705086641556,-541.06,0.00024919,2]
[311422260,1705086641565,-746.77833,0.00024919,2]
[311422261,1705086641577,-224.39167,0.00024919,2]
[311422262,1705086641586,-500.0,0.00024919,2]
[311422263,1705086641595,-500.0,0.00024919,2]
[311422264,1705086641604,-3628.81,0.00024919,3]
[311422265,1705086641612,-1695.33,0.00024929,2]
[311422266,1705086641622,-500.0,0.00024929,2]
[311422267,1705086641630,-500.0,0.00024929,2]
[311422268,1705086641639,-500.0,0.0002493,2]
[311422269,1705086641648,-500.0,0.0002493,2]
[311422270,1705086641657,-500.0,0.0002493,2]
[311422271,1705086641666,-500.0,0.0002493,2]
[311422272,1705086641675,-500.0,0.0002493,2]
[311422273,1705086641684,-4712.57883465,0.00025,2]
[311422274,1705086641692,-492.37298466,0.00025,2]
[311422275,1705086641704,-1507.62701534,0.00025,2]
[311422276,1705086641713,-2000.0,0.0002501,2]
[311422277,1705086641722,-2000.0,0.0002502,2]
[311422278,1705086641730,-1320.48128628,0.0002503,2]
[311422279,1705086641840,-679.51871372,0.0002503,2]
[311422280,1705086641849,-2000.0,0.0002504,2]
[311422281,1705086641858,-2112.109424,0.0002505,2]
[311422282,1705086641866,-500.0,0.00025191,2]
[311422283,1705086641875,-580.45,0.00025193,2]
[311422284,1705086641885,-541.06,0.00025193,2]
[311422285,1705086641893,-971.17,0.00025193,2]
[311422286,1705086641903,-500.0,0.00025193,2]
[311422287,1705086641912,-1695.33,0.00025203,2]
[311422288,1705086641921,-490.45112394,0.00025203,2]
[311422289,1705086641931,-500.0,0.00025203,2]
[311422290,1705086641941,-500.0,0.00025204,2]
[311422291,1705086641950,-340.38,0.00025204,2]
[311422292,1705086641960,-500.0,0.00025204,2]
[311422293,1705086641969,-500.0,0.00025204,2]
[311422294,1705086641978,-500.0,0.00025465,2]
[311422295,1705086641989,-580.45,0.00025467,2]
[311422296,1705086641998,-541.06,0.00025467,2]
[311422297,1705086642007,-971.17,0.00025467,2]
[311422298,1705086642016,-500.0,0.00025467,2]
[311422299,1705086642025,-1695.33,0.00025477,2]
[311422300,1705086642034,-500.0,0.00025477,2]
[311422301,1705086642044,-578.1257444,0.00025478,2]
[311422302,1705086642053,-500.0,0.00025478,2]
[311422303,1705086642062,-687.86118875,0.000257,2]
[311422304,1705086642072,-500.0,0.00025739,2]
[311422305,1705086642081,-580.45,0.00025741,2]
[311422306,1705086642090,-541.06,0.00025741,2]
[311422307,1705086642099,-971.17,0.00025741,2]
[311422308,1705086642108,-500.0,0.00025741,2]
[311422309,1705086642118,-1588.00945914,0.00025751,2]
[311422310,1705086642130,-107.32054086,0.00025751,2]
[311422311,1705086642140,-176.7385837,0.00025751,2]
[311422312,1705086642150,-500.0,0.00025752,2]
[311422313,1705086642159,-334.97,0.00026013,2]
[311422314,1705086642168,-429.26352742,0.00026015,2]
[311422320,1705086643325,-151.18647258,0.00026015,2]
[311422321,1705086643334,-541.06,0.00026015,2]
[311422322,1705086643343,-971.17,0.00026015,2]
[311422323,1705086643351,-500.0,0.00026015,2]
[311422324,1705086643360,-1695.33,0.00026025,2]
[311422325,1705086643370,-500.0,0.00026026,2]
[311422326,1705086643379,-580.45,0.00026289,2]
[311422327,1705086643388,-541.06,0.00026289,2]
[311422328,1705086643397,-971.17,0.00026289,2]
[311422330,1705086643407,-93.15713066,0.00026289,2]
[311422382,1705086646415,-406.84286934,0.00026289,2]
[311422383,1705086646425,-1472.76690614,0.00026298,2]
[311422384,1705086646434,-1054.55818901,0.00026298,7]
[311422385,1705086646444,-3968.34610861,0.00026299,2]
[311422386,1705086646453,-1817.75961411,0.00026299,2]
[311422387,1705086646463,-1695.33,0.00026299,2]
[311422388,1705086646472,-571.61584212,0.000263,2]
[311422389,1705086646482,-580.45,0.00026563,2]
[311422390,1705086646498,-541.06,0.00026563,2]
[311422391,1705086646507,-971.17,0.00026563,2]
[311422392,1705086646517,-287.31,0.00026563,2]
[311422393,1705086646527,-1695.33,0.00026573,2]
[311422394,1705086646536,-620.00878129,0.0002673,2]
[311422395,1705086646546,-580.45,0.00026837,2]
[311422396,1705086646554,-541.06,0.00026837,2]
[311422397,1705086646563,-971.17,0.00026837,2]
[311422398,1705086646573,-1695.33,0.00026847,2]
[311422399,1705086646582,-460.75992736,0.00027,2]
[311422400,1705086646591,-289.5463958,0.00027,2]
[311422401,1705086646600,-88.15401628,0.00027,2]
[311422504,1705087835330,-3200.70250042,0.00020373,2]
[311422512,1705087835397,-433.36,0.00020373,2]
[311422600,1705087838660,-605.40470293,0.00020373,2]
[311422601,1705087838671,-305.57833437,0.00020373,2]
[311422602,1705087838679,-310.14009564,0.00022738,2]
[311422603,1705087838689,-500.0,0.00022738,2]
[311422604,1705087838698,-400.33941676,0.00022738,2]
[311422605,1705087838708,-2093.76186828,0.00023011,2]
[311422606,1705087838717,-500.0,0.00023012,2]
[311422607,1705087838727,-166.666666,0.00023283,2]
[311422608,1705087838736,-500.0,0.00023286,2]
[311422609,1705087838745,-500.0,0.0002356,2]
[311422610,1705087838755,-500.0,0.00023833,2]
[311422611,1705087838764,-500.0,0.00023833,2]
[311422612,1705087838774,-500.0,0.00023833,2]
[311422613,1705087838783,-500.0,0.00023834,2]
[311422614,1705087838793,-166.666666,0.00023918,2]
[311422615,1705087838803,-1833.56058453,0.00024106,2]
[311422622,1705087841685,-2172.22878723,0.00024106,2]
[311422623,1705087841695,-500.0,0.00024107,2]
[311422624,1705087841704,-500.0,0.00024107,2]
[311422625,1705087841714,-500.0,0.00024108,2]
[311422626,1705087841723,-306.21476565,0.00024381,2]
[311422627,1705087841734,-301.15523435,0.00024381,2]
[311422628,1705087841743,-500.0,0.00024382,2]
[311422629,1705087841753,-166.666666,0.00024553,2]
[311422630,1705087841762,-155.01395126,0.00024578,4]
[311422631,1705087841772,-500.0,0.00024656,2]
[311422632,1705087841781,-500.0,0.0002493,2]
[311422633,1705087841790,-3001.46521398,0.00025,2]
[311422634,1705087841802,-1711.11362067,0.00025,2]
[311422635,1705087841811,-166.666666,0.00025188,2]
[311422636,1705087841821,-551.37,0.00025201,2]
[311422637,1705087841831,-500.0,0.00025204,2]
[311422638,1705087841840,-500.0,0.00025478,2]
[311422639,1705087841849,-166.666666,0.00025823,2]
[311422640,1705087841859,-166.666666,0.00026457,2]
[311422641,1705087841868,-1198.31466839,0.00026473,2]
[311422642,1705087841877,-155.01395126,0.00027,2]
[311422643,1705087841886,-1500.0,0.00027,2]
[311422644,1705087841896,-309.92726601,0.00027,2]
[311422645,1705087841905,-460.75992736,0.00027122,2]
[311422646,1705087841925,-285.409839,0.00027123,2]
[311422647,1705087841936,-4716.29758894,0.000273,4]
[311422648,1705087841951,-2814.15107414,0.000273,4]
[311422649,1705087841964,-1571.12327049,0.000273,4]
[311422650,1705087841974,-5462.78,0.00027301,3]
[311422651,1705087841984,-2377.57046357,0.00027303,3]
[311422672,1705087843659,-4177.76953643,0.00027303,3]
[311422673,1705087843669,-500.0,0.0002731,2]
[311422674,1705087843679,-234.14884369,0.0002731,2]
[311422675,1705087843689,-500.0,0.0002731,2]
[311422676,1705087843701,-500.0,0.0002731,2]
[311422677,1705087843711,-500.0,0.0002731,2]
[311422678,1705087843720,-500.0,0.0002731,2]
[311422679,1705087843731,-500.0,0.0002731,2]
[311422680,1705087843741,-500.0,0.0002731,2]
[311422681,1705087843751,-1336.08,0.0002731,2]
[311422682,1705087843760,-500.0,0.0002731,2]
[311422683,1705087843770,-500.0,0.0002731,2]
[311422684,1705087843781,-401.05731724,0.00027311,2]
[311422740,1705087846602,-4552.32,0.00027303,3]
[311422742,1705087846613,-4723.20026472,0.00027311,2]
[311422744,1705087846623,-3717.55170043,0.00027311,2]
[311422749,1705087846662,-628.869997,0.00027311,2]
[311422996,1705088595440,-2093.76186828,0.00024561,2]
[311422997,1705088595466,-5955.31381507,0.00024562,2]
[311422998,1705088595492,-155.04651395,0.00024578,4]
[311422999,1705088595515,-4712.57883465,0.00025,2]
[311423000,1705088595540,-150.0,0.00025211,2]
[311423001,1705088595565,-687.86118875,0.000257,2]
[311423002,1705088595590,-620.02942474,0.00026663,2]